[Event "MCR rapid mládeže 2023 U16"]
[Site "Harachov, Czech Republic"]
[Date "2023.09.09"]
[Round "2.15"]
[White "Zrust, Lukas"]
[Black "Mik, Tomas"]
[Result "0-1"]
[TimeControl "20min+5s/move"]
[WhiteElo "1519"]
[BlackElo "1802"]

1. e4 {[%clk 00:20:07]} {[%emt 00:00:02]} c5 {[%clk 00:20:09]} {[%emt
00:00:02]} 2. Nf3 {[%clk 00:20:08]} {[%emt 00:00:04]} e6 {[%clk 00:20:12]}
{[%emt 00:00:02]} 3. d4 {[%clk 00:20:11]} {[%emt 00:00:02]} cxd4 {[%clk
00:20:16]} {[%emt 00:00:01]} 4. Nxd4 {[%clk 00:20:15]} {[%emt 00:00:01]} a6
{[%clk 00:20:19]} {[%emt 00:00:02]} 5. Be3 {[%clk 00:20:02]} {[%emt 00:00:18]}
Nf6 {[%clk 00:20:14]} {[%emt 00:00:10]} 6. Nc3 {[%clk 00:19:21]} {[%emt
00:00:46]} Qc7 {[%clk 00:20:05]} {[%emt 00:00:14]} 7. Be2 {[%clk 00:19:03]}
{[%emt 00:00:22]} Bb4 {[%clk 00:19:03]} {[%emt 00:01:08]} 8. Bd2 {[%clk
00:18:26]} {[%emt 00:00:42]} Bxc3 {[%clk 00:18:53]} {[%emt 00:00:15]} 9. Bxc3
{[%clk 00:18:16]} {[%emt 00:00:14]} Nxe4 {[%clk 00:18:56]} {[%emt 00:00:03]} 10.
Bb4 {[%clk 00:18:11]} {[%emt 00:00:11]} Qb6 {[%clk 00:17:18]} {[%emt 00:01:43]}
11. c3 {[%clk 00:16:55]} {[%emt 00:01:20]} d6 {[%clk 00:15:07]} {[%emt
00:02:16]} 12. O-O {[%clk 00:15:41]} {[%emt 00:01:19]} O-O {[%clk 00:14:57]}
{[%emt 00:00:15]} 13. Bf3 {[%clk 00:15:11]} {[%emt 00:00:35]} Nf6 {[%clk
00:14:07]} {[%emt 00:00:54]} 14. Nb3 {[%clk 00:15:00]} {[%emt 00:00:17]} Nc6
{[%clk 00:11:55]} {[%emt 00:02:17]} 15. Bxd6 {[%clk 00:13:43]} {[%emt
00:01:22]} Rd8 {[%clk 00:11:39]} {[%emt 00:00:21]} 16. Bc5 {[%clk 00:12:42]}
{[%emt 00:01:06]} Qc7 {[%clk 00:11:06]} {[%emt 00:00:38]} 17. Qc2 {[%clk
00:12:23]} {[%emt 00:00:24]} b6 {[%clk 00:10:25]} {[%emt 00:00:47]} 18. Be3
{[%clk 00:12:18]} {[%emt 00:00:09]} Bb7 {[%clk 00:10:21]} {[%emt 00:00:09]} 19.
Rad1 {[%clk 00:10:44]} {[%emt 00:01:38]} Nb4 {[%clk 00:09:32]} {[%emt
00:00:55]} 20. Qe2 {[%clk 00:10:41]} {[%emt 00:00:07]} Nbd5 {[%clk 00:09:16]}
{[%emt 00:00:22]} 21. Bxd5 {[%clk 00:09:46]} {[%emt 00:01:01]} Nxd5 {[%clk
00:08:43]} {[%emt 00:00:37]} 22. Bd4 {[%clk 00:09:35]} {[%emt 00:00:15]} Nf4
{[%clk 00:07:50]} {[%emt 00:00:59]} 23. Qg4 {[%clk 00:09:30]} {[%emt 00:00:09]}
e5 {[%clk 00:07:31]} {[%emt 00:00:25]} 24. Be3 {[%clk 00:08:19]} {[%emt
00:01:16]} Nxg2 {[%clk 00:06:31]} {[%emt 00:01:05]} 25. Bg5 {[%clk 00:07:06]}
{[%emt 00:01:18]} Rxd1 {[%clk 00:05:26]} {[%emt 00:01:10]} 26. Rxd1 {[%clk
00:07:09]} {[%emt 00:00:02]} Nf4 {[%clk 00:04:32]} {[%emt 00:00:58]} 27. Bf6
{[%clk 00:05:23]} {[%emt 00:01:51]} Ng6 {[%clk 00:03:23]} {[%emt 00:01:14]} 28.
Bg5 {[%clk 00:04:32]} {[%emt 00:00:56]} Qc6 {[%clk 00:02:59]} {[%emt 00:00:31]}
29. f3 {[%clk 00:04:35]} {[%emt 00:00:01]} Qxf3 {[%clk 00:02:33]} {[%emt
00:00:30]} 30. Qxf3 {[%clk 00:04:32]} {[%emt 00:00:08]} Bxf3 {[%clk 00:02:37]}
{[%emt 00:00:01]} 31. Rd6 {[%clk 00:04:29]} {[%emt 00:00:08]} f6 {[%clk
00:02:14]} {[%emt 00:00:29]} 32. Be3 {[%clk 00:04:24]} {[%emt 00:00:10]} b5
{[%clk 00:02:17]} {[%emt 00:00:03]} 33. Kf2 {[%clk 00:04:01]} {[%emt 00:00:27]}
e4 {[%clk 00:02:08]} {[%emt 00:00:14]} 34. a3 {[%clk 00:03:59]} {[%emt
00:00:08]} Ne5 {[%clk 00:02:10]} {[%emt 00:00:03]} 35. Nc5 {[%clk 00:03:56]}
{[%emt 00:00:07]} Ng4+ {[%clk 00:02:12]} {[%emt 00:00:03]} 36. Nb3 {[%emt
00:00:13]} Ne5 {[%emt 00:00:01]} 37. h3 {[%emt 00:00:13]} 0-1

[Event "MCR rapid mládeže 2023 U16"]
[Site "Harachov, Czech Republic"]
[Date "2023.09.09"]
[Round "2.16"]
[White "Svadlenka, Michal"]
[Black "Krivka, Matej"]
[Result "1-0"]
[TimeControl "20min+5s/move"]
[WhiteElo "1451"]
[BlackElo "1552"]

1. e4 {[%clk 00:20:08]} {[%emt 00:00:02]} c5 {[%clk 00:20:08]} {[%emt
00:00:02]} 2. Nf3 {[%clk 00:20:11]} {[%emt 00:00:02]} e6 {[%clk 00:20:09]}
{[%emt 00:00:04]} 3. d4 {[%clk 00:20:15]} {[%emt 00:00:01]} cxd4 {[%clk
00:20:11]} {[%emt 00:00:03]} 4. Nxd4 {[%clk 00:20:18]} {[%emt 00:00:02]} Nc6
{[%clk 00:20:13]} {[%emt 00:00:02]} 5. Nc3 {[%clk 00:20:18]} {[%emt 00:00:06]}
a6 {[%clk 00:20:15]} {[%emt 00:00:04]} 6. Be3 {[%clk 00:19:57]} {[%emt
00:00:25]} Qc7 {[%clk 00:20:15]} {[%emt 00:00:05]} 7. Qd2 {[%clk 00:19:38]}
{[%emt 00:00:24]} Nf6 {[%clk 00:20:01]} {[%emt 00:00:18]} 8. f3 {[%clk
00:19:41]} {[%emt 00:00:02]} Bb4 {[%clk 00:18:48]} {[%emt 00:01:19]} 9. O-O-O
{[%clk 00:19:27]} {[%emt 00:00:19]} d5 {[%clk 00:18:17]} {[%emt 00:00:36]} 10.
exd5 {[%clk 00:09:03]} {[%emt 00:10:29]} Nxd5 {[%clk 00:18:06]} {[%emt
00:00:16]} 11. Nxc6 {[%clk 00:08:42]} {[%emt 00:00:26]} Qxc6 {[%clk 00:08:47]}
{[%emt 00:09:24]} 12. Bd4 {[%clk 00:08:13]} {[%emt 00:00:34]} Bxc3 {[%clk
00:07:02]} {[%emt 00:01:49]} 13. Bxc3 {[%clk 00:08:11]} {[%emt 00:00:07]} O-O
{[%clk 00:06:00]} {[%emt 00:01:08]} 14. Be5 {[%clk 00:07:31]} {[%emt 00:00:45]}
b5 {[%clk 00:04:27]} {[%emt 00:01:38]} 15. Bd3 {[%clk 00:07:19]} {[%emt
00:00:17]} f6 {[%clk 00:02:12]} {[%emt 00:02:21]} 16. Bg3 {[%clk 00:07:01]}
{[%emt 00:00:22]} Bb7 {[%clk 00:01:56]} {[%emt 00:00:21]} 17. Rhe1 {[%clk
00:06:21]} {[%emt 00:00:45]} Rac8 {[%clk 00:00:54]} {[%emt 00:01:07]} 18. Qe2
{[%clk 00:06:03]} {[%emt 00:00:23]} Rfe8 {[%clk 00:00:40]} {[%emt 00:00:19]} 19.
Rd2 {[%clk 00:05:47]} {[%emt 00:00:21]} Nb4 {[%clk 00:00:35]} {[%emt 00:00:09]}
20. Be4 {[%clk 00:05:37]} {[%emt 00:00:16]} Qc7 {[%clk 00:00:20]} {[%emt
00:00:20]} 21. Bxc7 {[%clk 00:05:28]} {[%emt 00:00:14]} 1-0

[Event "MCR rapid mládeže 2023 U16"]
[Site "Harachov, Czech Republic"]
[Date "2023.09.09"]
[Round "2.17"]
[White "Walder, Hugo"]
[Black "Honcharov, Makar"]
[Result "1-0"]
[TimeControl "20min+5s/move"]
[WhiteElo "1403"]
[BlackElo "1593"]

1. e4 {[%clk 00:20:03]} {[%emt 00:00:07]} c5 {[%clk 00:20:10]} {[%emt
00:00:01]} 2. Nf3 {[%clk 00:20:06]} {[%emt 00:00:01]} d6 {[%clk 00:20:14]}
{[%emt 00:00:01]} 3. d4 {[%clk 00:20:10]} {[%emt 00:00:01]} cxd4 {[%clk
00:20:18]} {[%emt 00:00:01]} 4. Nxd4 {[%clk 00:20:14]} {[%emt 00:00:01]} Nf6
{[%clk 00:20:22]} {[%emt 00:00:01]} 5. Nc3 {[%clk 00:20:17]} {[%emt 00:00:01]}
a6 {[%clk 00:20:27]} {[%emt 00:00:02]} 6. Bc4 {[%clk 00:20:19]} {[%emt
00:00:03]} e6 {[%clk 00:20:30]} {[%emt 00:00:01]} 7. Bb3 {[%clk 00:20:21]}
{[%emt 00:00:02]} Nbd7 {[%clk 00:20:26]} {[%emt 00:00:10]} 8. Bg5 {[%clk
00:20:09]} {[%emt 00:00:17]} Nc5 {[%clk 00:20:24]} {[%emt 00:00:07]} 9. O-O
{[%clk 00:18:56]} {[%emt 00:01:17]} Nxb3 {[%clk 00:20:28]} {[%emt 00:00:03]} 10.
Nxb3 {[%clk 00:18:52]} {[%emt 00:00:07]} Be7 {[%clk 00:20:31]} {[%emt
00:00:02]} 11. Qd2 {[%clk 00:18:22]} {[%emt 00:00:36]} h6 {[%clk 00:19:58]}
{[%emt 00:00:39]} 12. Be3 {[%clk 00:18:09]} {[%emt 00:00:17]} b5 {[%clk
00:19:54]} {[%emt 00:00:10]} 13. f3 {[%clk 00:17:49]} {[%emt 00:00:25]} Bb7
{[%clk 00:19:49]} {[%emt 00:00:09]} 14. a4 {[%clk 00:16:56]} {[%emt 00:00:57]}
b4 {[%clk 00:19:41]} {[%emt 00:00:14]} 15. Na2 {[%clk 00:16:37]} {[%emt
00:00:23]} a5 {[%clk 00:19:45]} {[%emt 00:00:02]} 16. Qf2 {[%clk 00:16:24]}
{[%emt 00:00:18]} Nd7 {[%clk 00:19:40]} {[%emt 00:00:10]} 17. Rfd1 {[%clk
00:15:33]} {[%emt 00:00:56]} Qc7 {[%clk 00:19:09]} {[%emt 00:00:36]} 18. Rac1
{[%clk 00:14:36]} {[%emt 00:01:01]} d5 {[%clk 00:18:02]} {[%emt 00:01:13]} 19.
c3 {[%clk 00:12:52]} {[%emt 00:01:49]} Qc6 {[%clk 00:16:50]} {[%emt 00:01:17]}
20. Nd4 {[%clk 00:10:15]} {[%emt 00:02:43]} Qa6 {[%clk 00:14:43]} {[%emt
00:02:12]} 21. Nb5 {[%clk 00:09:46]} {[%emt 00:00:33]} Rc8 {[%clk 00:12:38]}
{[%emt 00:02:10]} 22. cxb4 {[%clk 00:09:33]} {[%emt 00:00:17]} O-O {[%clk
00:12:38]} {[%emt 00:00:05]} 23. Nc7 {[%clk 00:08:48]} {[%emt 00:00:51]} Qd6
{[%clk 00:11:34]} {[%emt 00:01:07]} 24. Nb5 {[%clk 00:08:06]} {[%emt 00:00:49]}
Rxc1 {[%clk 00:10:41]} {[%emt 00:00:58]} 25. Rxc1 {[%clk 00:08:01]} {[%emt
00:00:09]} Qe5 {[%clk 00:09:19]} {[%emt 00:01:27]} 26. Bd4 {[%clk 00:05:46]}
{[%emt 00:02:21]} Qg5 {[%clk 00:08:43]} {[%emt 00:00:40]} 27. f4 {[%clk
00:05:27]} {[%emt 00:00:24]} Qg6 {[%clk 00:06:48]} {[%emt 00:02:00]} 28. e5
{[%clk 00:05:22]} {[%emt 00:00:10]} axb4 {[%clk 00:06:35]} {[%emt 00:00:19]} 29.
b3 {[%clk 00:03:58]} {[%emt 00:01:29]} f6 {[%clk 00:05:38]} {[%emt 00:01:02]}
30. Qc2 {[%clk 00:03:39]} {[%emt 00:00:21]} Qg4 {[%clk 00:03:18]} {[%emt
00:02:28]} 31. exf6 {[%clk 00:01:59]} {[%emt 00:01:45]} Bxf6 {[%clk 00:01:18]}
{[%emt 00:02:05]} 32. Bxf6 {[%clk 00:02:02]} {[%emt 00:00:02]} Nxf6 {[%clk
00:01:14]} {[%emt 00:00:09]} 33. Qc7 {[%clk 00:01:03]} {[%emt 00:01:04]} Ba8
{[%clk 00:00:21]} {[%emt 00:00:58]} 34. Nxb4 {[%clk 00:00:47]} {[%emt
00:00:20]} d4 {[%clk 00:00:24]} {[%emt 00:00:03]} 35. Qc2 {[%clk 00:00:16]}
{[%emt 00:00:35]} Qxf4 {[%clk 00:00:14]} {[%emt 00:00:15]} 36. Nd3 {[%clk
00:00:18]} {[%emt 00:00:02]} Qg5 {[%clk 00:00:13]} {[%emt 00:00:05]} 37. Nxd4
{[%clk 00:00:16]} {[%emt 00:00:10]} Rd8 {[%clk 00:00:07]} {[%emt 00:00:11]} 38.
Nxe6 {[%clk 00:00:18]} {[%emt 00:00:03]} Qe3+ {[%clk 00:00:11]} 39. Kh1 {[%clk
00:00:21]} {[%emt 00:00:02]} Qxd3 {[%clk 00:00:15]} {[%emt 00:00:02]} 1-0

[Event "MCR rapid mládeže 2023 U16"]
[Site "Harachov, Czech Republic"]
[Date "2023.09.09"]
[Round "2.18"]
[White "Mydlar, Matej"]
[Black "Komarek, Tobias"]
[Result "1-0"]
[TimeControl "20min+5s/move"]
[WhiteElo "1711"]
[BlackElo "1312"]

1. e4 {[%clk 00:20:08]} {[%emt 00:00:02]} c5 {[%clk 00:20:06]} {[%emt
00:00:05]} 2. Nf3 {[%clk 00:20:11]} {[%emt 00:00:01]} Nc6 {[%clk 00:20:06]}
{[%emt 00:00:05]} 3. d4 {[%clk 00:20:15]} {[%emt 00:00:01]} cxd4 {[%clk
00:20:06]} {[%emt 00:00:05]} 4. Nxd4 {[%clk 00:20:19]} {[%emt 00:00:02]} Nf6
{[%clk 00:20:02]} {[%emt 00:00:08]} 5. Nc3 {[%clk 00:20:22]} {[%emt 00:00:03]}
g6 {[%clk 00:20:05]} {[%emt 00:00:02]} 6. Be3 {[%clk 00:20:09]} {[%emt
00:00:17]} Bg7 {[%clk 00:20:05]} {[%emt 00:00:06]} 7. Bc4 {[%clk 00:20:06]}
{[%emt 00:00:07]} O-O {[%clk 00:20:01]} {[%emt 00:00:09]} 8. Bb3 {[%clk
00:20:10]} {[%emt 00:00:01]} d6 {[%clk 00:19:58]} {[%emt 00:00:08]} 9. f3
{[%clk 00:20:13]} {[%emt 00:00:02]} Bd7 {[%clk 00:20:02]} {[%emt 00:00:01]} 10.
Qd2 {[%clk 00:20:17]} {[%emt 00:00:01]} Rc8 {[%clk 00:20:05]} {[%emt 00:00:02]}
11. O-O-O {[%clk 00:20:19]} {[%emt 00:00:02]} Nxd4 {[%clk 00:20:07]} {[%emt
00:00:04]} 12. Bxd4 {[%clk 00:20:23]} {[%emt 00:00:01]} b5 {[%clk 00:20:03]}
{[%emt 00:00:09]} 13. g4 {[%clk 00:20:14]} {[%emt 00:00:14]} a5 {[%clk
00:19:35]} {[%emt 00:00:33]} 14. a3 {[%clk 00:19:12]} {[%emt 00:01:07]} a4
{[%clk 00:18:39]} {[%emt 00:01:02]} 15. Ba2 {[%clk 00:17:56]} {[%emt 00:01:20]}
Qa5 {[%clk 00:17:54]} {[%emt 00:00:50]} 16. g5 {[%clk 00:17:59]} {[%emt
00:00:03]} Nh5 {[%clk 00:17:20]} {[%emt 00:00:38]} 17. Bxg7 {[%clk 00:18:01]}
{[%emt 00:00:03]} Nxg7 {[%clk 00:17:22]} {[%emt 00:00:04]} 18. Kb1 {[%clk
00:16:50]} {[%emt 00:01:15]} Bc6 {[%clk 00:15:11]} {[%emt 00:02:16]} 19. Nd5
{[%clk 00:16:31]} {[%emt 00:00:23]} Qd8 {[%clk 00:14:29]} {[%emt 00:00:47]} 20.
h4 {[%clk 00:16:26]} {[%emt 00:00:11]} Nh5 {[%clk 00:14:28]} {[%emt 00:00:06]}
21. Nf4 {[%clk 00:16:11]} {[%emt 00:00:16]} Nxf4 {[%clk 00:13:51]} {[%emt
00:00:46]} 22. Qxf4 {[%clk 00:16:04]} {[%emt 00:00:12]} Qb6 {[%clk 00:12:30]}
{[%emt 00:01:27]} 23. h5 {[%clk 00:15:44]} {[%emt 00:00:24]} Kg7 {[%clk
00:10:45]} {[%emt 00:01:50]} 24. e5 {[%clk 00:15:04]} {[%emt 00:00:45]} Qf2
{[%clk 00:08:11]} {[%emt 00:02:39]} 25. exd6 {[%clk 00:12:30]} {[%emt
00:02:38]} Bxf3 {[%clk 00:06:45]} {[%emt 00:01:31]} 26. dxe7 {[%clk 00:12:02]}
{[%emt 00:00:33]} Qxc2+ {[%clk 00:05:31]} {[%emt 00:01:19]} 27. Ka1 {[%clk
00:12:05]} {[%emt 00:00:01]} Bxd1 {[%clk 00:05:26]} {[%emt 00:00:11]} 28.
exf8=Q+ {[%clk 00:11:35]} {[%emt 00:00:35]} Rxf8 {[%clk 00:05:22]} {[%emt
00:00:09]} 29. Qd4+ {[%clk 00:11:34]} {[%emt 00:00:05]} Kg8 {[%clk 00:05:20]}
{[%emt 00:00:08]} 30. Rxd1 {[%clk 00:11:34]} {[%emt 00:00:05]} Qf5 {[%clk
00:05:10]} {[%emt 00:00:15]} 31. h6 {[%clk 00:11:35]} {[%emt 00:00:04]} 1-0

[Event "MCR rapid mládeže 2023 U16"]
[Site "Harachov, Czech Republic"]
[Date "2023.09.09"]
[Round "2.19"]
[White "Sochor, Antonin"]
[Black "Tejnor, Martin"]
[Result "0-1"]
[TimeControl "20min+5s/move"]
[WhiteElo "1480"]
[BlackElo "1434"]

1. e4 {[%clk 00:20:08]} {[%emt 00:00:02]} c5 {[%clk 00:20:09]} {[%emt
00:00:02]} 2. Nf3 {[%clk 00:20:07]} {[%emt 00:00:06]} d6 {[%clk 00:20:13]}
{[%emt 00:00:02]} 3. d4 {[%clk 00:20:10]} {[%emt 00:00:01]} cxd4 {[%clk
00:20:16]} {[%emt 00:00:02]} 4. Nxd4 {[%clk 00:20:14]} {[%emt 00:00:01]} Nf6
{[%clk 00:20:20]} {[%emt 00:00:01]} 5. f3 {[%clk 00:20:18]} {[%emt 00:00:01]}
Nc6 {[%clk 00:20:21]} {[%emt 00:00:04]} 6. c3 {[%clk 00:19:50]} {[%emt
00:00:33]} e6 {[%clk 00:20:09]} {[%emt 00:00:17]} 7. Be3 {[%clk 00:19:47]}
{[%emt 00:00:07]} Be7 {[%clk 00:20:01]} {[%emt 00:00:13]} 8. Bb5 {[%clk
00:19:44]} {[%emt 00:00:09]} Bd7 {[%clk 00:20:02]} {[%emt 00:00:04]} 9. O-O
{[%clk 00:19:31]} {[%emt 00:00:18]} O-O {[%clk 00:19:59]} {[%emt 00:00:08]} 10.
Ba4 {[%clk 00:19:25]} {[%emt 00:00:11]} a6 {[%clk 00:19:56]} {[%emt 00:00:08]}
11. Nd2 {[%clk 00:19:26]} {[%emt 00:00:03]} Qc7 {[%clk 00:19:23]} {[%emt
00:00:39]} 12. Bb3 {[%clk 00:19:20]} {[%emt 00:00:11]} b5 {[%clk 00:19:02]}
{[%emt 00:00:26]} 13. Rc1 {[%clk 00:19:18]} {[%emt 00:00:06]} Qb7 {[%clk
00:18:31]} {[%emt 00:00:37]} 14. c4 {[%clk 00:19:00]} {[%emt 00:00:24]} b4
{[%clk 00:17:47]} {[%emt 00:00:48]} 15. Nxc6 {[%clk 00:18:26]} {[%emt
00:00:39]} Bxc6 {[%clk 00:17:35]} {[%emt 00:00:17]} 16. c5 {[%clk 00:18:21]}
{[%emt 00:00:10]} d5 {[%clk 00:16:54]} {[%emt 00:00:46]} 17. exd5 {[%clk
00:18:15]} {[%emt 00:00:10]} Nxd5 {[%clk 00:16:57]} {[%emt 00:00:02]} 18. Bf2
{[%clk 00:18:10]} {[%emt 00:00:06]} Rfd8 {[%clk 00:16:41]} {[%emt 00:00:26]} 19.
Qc2 {[%clk 00:17:42]} {[%emt 00:00:33]} Rac8 {[%clk 00:16:18]} {[%emt
00:00:28]} 20. Rfd1 {[%clk 00:16:49]} {[%emt 00:00:58]} Bg5 {[%clk 00:13:18]}
{[%emt 00:03:06]} 21. a3 {[%clk 00:13:51]} {[%emt 00:03:02]} h6 {[%clk
00:12:29]} {[%emt 00:00:53]} 22. axb4 {[%clk 00:13:04]} {[%emt 00:00:51]} Nxb4
{[%clk 00:12:19]} {[%emt 00:00:16]} 23. Qc3 {[%clk 00:12:32]} {[%emt 00:00:34]}
Rd3 {[%clk 00:10:17]} {[%emt 00:02:11]} 24. Qc4 {[%clk 00:11:47]} {[%emt
00:00:43]} Rxd2 {[%clk 00:09:43]} {[%emt 00:00:45]} 25. Rxd2 {[%clk 00:11:42]}
{[%emt 00:00:10]} Bxd2 {[%clk 00:09:46]} {[%emt 00:00:03]} 26. Rd1 {[%clk
00:11:40]} {[%emt 00:00:04]} Bg5 {[%clk 00:09:33]} {[%emt 00:00:20]} 27. h4
{[%clk 00:11:10]} {[%emt 00:00:33]} Bf6 {[%clk 00:09:18]} {[%emt 00:00:23]} 28.
Bg3 {[%clk 00:10:03]} {[%emt 00:01:01]} Bd5 {[%clk 00:09:21]} {[%emt 00:00:13]}
29. c6 {[%clk 00:09:13]} {[%emt 00:00:55]} Qb6+ {[%clk 00:08:04]} {[%emt
00:01:21]} 30. Bf2 {[%clk 00:08:48]} {[%emt 00:00:29]} Qxf2+ {[%clk 00:07:55]}
{[%emt 00:00:16]} 31. Kxf2 {[%clk 00:08:46]} {[%emt 00:00:06]} Bxc4 {[%clk
00:07:59]} {[%emt 00:00:02]} 32. Bxc4 {[%clk 00:08:48]} {[%emt 00:00:03]} Rxc6
{[%clk 00:08:02]} {[%emt 00:00:02]} 33. b3 {[%clk 00:08:51]} {[%emt 00:00:02]}
Bxh4+ {[%clk 00:07:49]} {[%emt 00:00:18]} 34. g3 {[%clk 00:08:53]} {[%emt
00:00:02]} Bf6 {[%clk 00:07:53]} {[%emt 00:00:01]} 35. Rd7 {[%clk 00:08:46]}
{[%emt 00:00:13]} Nd5 {[%clk 00:07:15]} {[%emt 00:00:43]} 36. Ra7 {[%clk
00:08:22]} {[%emt 00:00:27]} Bd4+ {[%clk 00:07:13]} {[%emt 00:00:09]} 37. Kg2
{[%clk 00:08:25]} {[%emt 00:00:02]} Bxa7 {[%clk 00:07:14]} {[%emt 00:00:04]}
0-1